Cogmind - Beta 13 @@@ ROGUE MODE // 2024.04.11 @ 21:06:42 Player: Eusmilis Result: Destroyed by L-31 Rogue with Katana Performance ------------- Evolutions (1) 500 Regions Visited (4) 800 Robots Destroyed (27) 135 Value Destroyed (761) 761 Prototype IDs (1) 20 Alien Tech Used (0) 0 Bonus (106) 106 TOTAL SCORE: 2322 Bonus ------- Follower Combat Kills 106 Cogmind --------- Core Integrity 0/400 Matter 285/300 Energy 65/100 System Corruption 6% Temperature Warm (107) Movement Walking (190) Ox1 Location -9/Storage Parts ------- > --- POWER (1) -------- (None) > --- PROPULSION (2) --- Aluminum Leg > --- UTILITY (4) ------ Small Storage Unit Visual Processing Unit Hacking Suite > --- WEAPON (2) ------- EM Shotgun EM Shotgun > --- INVENTORY (8) ---- Heavy Ion Engine Aluminum Leg Aluminum Leg Aluminum Leg EM Shotgun Mining Laser Peak State ------------ > --- POWER ------------ Improved Ion Engine > --- PROPULSION ------- Improved Aluminum Leg Carbon-fiber Leg > --- UTILITY ---------- Small Storage Unit Seismic Detector Hacking Suite > --- WEAPON ----------- Beamcaster Beam Cannon > --- INVENTORY -------- Ion Engine Light Nuclear Core Aluminum Leg Aluminum Leg Aluminum Leg Medium Laser Medium Laser Mining Laser [Rating: 19] Favorites ----------- Power Ion Engine Engine Ion Engine Power Core Light Nuclear Core Propulsion Aluminum Leg Leg Aluminum Leg Utility Small Storage Unit Device Seismic Detector Storage Small Storage Unit Processor Visual Processing Unit Hackware Hacking Suite Protection Light Armor Plating Weapon Medium Laser Energy Gun Medium Laser Energy Cannon Beam Cannon Build | -11 -10 -10 -9 -9 ------- Run | Yrd Mat Min Mat Sto Slots Evolved 2 | . . . 2 . Power . | . . . . . Propulsion . | . . . . . Utility 2 | . . . 2 . Weapon . | . . . . . Parts Attached 31 | 7 2 4 15 3 Power 6 | 1 . 1 3 1 Engine 3 | 1 . 1 . 1 Core 3 | . . . 3 . Reactor . | . . . . . Propulsion 9 | 2 . 1 6 . Treads . | . . . . . Leg 9 | 2 . 1 6 . Wheel . | . . . . . Hover . | . . . . . Flight . | . . . . . Utility 6 | 2 . . 4 . Device 2 | 1 . . 1 . Storage 1 | 1 . . . . Processor 1 | . . . 1 . Hackware 1 | . . . 1 . Protection 1 | . . . 1 . Artifact . | . . . . . Weapon 10 | 2 2 2 2 2 Energy Gun 9 | 2 2 1 2 2 Energy Cannon 1 | . . 1 . . Ballistic Gun . | . . . . . Ballistic Cannon . | . . . . . Launcher . | . . . . . Special Weapon . | . . . . . Impact Weapon . | . . . . . Slashing Weapon . | . . . . . Piercing Weapon . | . . . . . Special Melee Weapon . | . . . . . Unidentified Prototypes 1 | . . . . 1 Parts Lost 11 | . . . 6 5 Power 2 | . . . 1 1 Propulsion 2 | . . . 1 1 Utility 3 | . . . 2 1 Weapon 4 | . . . 2 2 Highest Loss Streak 5 | . . . 2 5 To Critical Strikes . | . . . . . Average Slot Usage (%) 95 | . 100 100 85 98 Engine 10 | . 14 14 1 9 Core 2 | . . . 7 1 Leg 25 | . 28 28 21 21 Device 11 | . 14 14 7 10 Storage 12 | . 14 14 11 11 Processor 1 | . . . . 11 Hackware 4 | . . . 11 11 Energy Gun 19 | . 28 17 13 21 Energy Cannon 5 | . . 10 7 . Naked Turns . | . . . . . Heaviest Build 21 | 14 15 21 21 18 Greatest Support 28 | 20 20 25 28 20 Greatest Overweight (x) 1 | 1 . . 1 . Average Overweight (x) . | . . . . . Largest Inventory Capacity 8 | 8 8 8 8 8 Average Capacity 7 | 7 8 8 8 8 Most Carried 8 | 3 8 8 8 8 Average Carried 7 | 2 6 8 7 7 Final Capacity 8 | 8 8 8 8 8 Final Carried 8 | 3 8 8 7 6 Class Distribution -------------------- 59% | Scavenger-Mutant 40% | Mutant Dominant Class ---------------- Mutant | -10/Materials Scavenger-Mutant | -10/Mines Scavenger-Mutant | -9/Materials Scavenger-Mutant | -9/Storage Resources | -11 -10 -10 -9 -9 ----------- Run | Yrd Mat Min Mat Sto Matter Collected 518 | 253 37 40 167 21 Remotely . | . . . . . Salvage Created 971 | 124 205 29 559 54 Parts 50 | 7 9 2 30 2 Haulers Intercepted . | . . . . . Recyclers Shooed . | . . . . . Parts Field Recycled . | . . . . . Retrieved Matter . | . . . . . Parts Self-Destructed . | . . . . . Prevented . | . . . . . Kills | -11 -10 -10 -9 -9 ------- Run | Yrd Mat Min Mat Sto Combat Hostiles Destroyed 21 | . 5 2 13 1 Guns 10 | . 4 . 5 1 Cannons 8 | . . 2 6 . Classes Destroyed 8 | 2 2 1 3 . Tunneler 3 | 3 . . . . Recycler 1 | 1 . . . . Operator 1 | . 1 . . . Watcher 1 | . . . 1 . Swarmer 4 | . . 2 2 . Grunt 13 | . 5 . 8 . Brawler 1 | . . . 1 . Sentry 3 | . . . 2 1 Best Kill Streak 5 | 3 2 2 5 1 Combat Bots Only 5 | . 2 2 5 1 Max Kills in Single Turn 1 | 1 1 1 1 1 Gunslinging . | . . . . . Exploded . | . . . . . Melee . | . . . . . Uniques/NPCs Destroyed . | . . . . . Combat | -11 -10 -10 -9 -9 -------- Run | Yrd Mat Min Mat Sto Hostile Shots Fired 197 | . 45 12 107 33 Missed 54 | . 13 3 30 8 Damage Taken 1950 | . 365 86 949 550 Core 494 | . 89 . 271 134 Absorbed by Shields . | . . . . . Core Remaining (%) 82 | 100 . 64 . . Volleys Fired 115 | 7 29 5 64 10 Largest 2 | 2 2 2 2 2 Hottest 135 | 90 100 135 135 100 Shots Fired 190 | 14 56 10 92 18 Gun 143 | 14 56 5 50 18 Cannon 47 | . . 5 42 . Launcher . | . . . . . Special . | . . . . . Kinetic . | . . . . . Thermal 188 | 14 56 10 92 16 Explosive . | . . . . . Electromagnetic 2 | . . . . 2 Robot Hit Streak 12 | 3 6 1 11 12 Robot Miss Streak 4 | 2 2 4 3 1 Penetration Max . | . . . . . Secondary Targets 1 | . . . 1 . Max Gunslinging Chain 1 | . . . 1 . Shots Hit Robots 123 | 8 32 3 67 13 Core Hits 45 | 5 12 2 23 3 Critical Kills . | . . . . . Critical Parts Destroyed . | . . . . . Critical Strikes 5 | . 1 . 2 2 Burn 5 | . 1 . 2 2 Melee Attacks . | . . . . . Impact . | . . . . . Slashing . | . . . . . Piercing . | . . . . . Sneak Attacks . | . . . . . Combat Hostiles . | . . . . . Follow-up Attacks . | . . . . . Damage Inflicted 1799 | 96 393 56 1074 180 Guns 1165 | 96 393 20 476 180 Cannons 629 | . . 36 593 . Explosions . | . . . . . Melee . | . . . . . Ramming 5 | . . . 5 . Kinetic . | . . . . . Thermal 1762 | 96 393 56 1069 148 Explosive . | . . . . . Electromagnetic 32 | . . . . 32 Impact . | . . . . . Slashing . | . . . . . Piercing . | . . . . . Highest Corruption 6 | . . . . 6 Average Corruption 4 | . . . . 4 Corruption Purged . | . . . . . Corruption Blocked . | . . . . . Overload Shots . | . . . . . Overflow Damage . | . . . . . Projectiles . | . . . . . Explosions . | . . . . . Melee . | . . . . . Knockbacks . | . . . . . Impact . | . . . . . Kinetic . | . . . . . Secondary . | . . . . . Self-Inflicted Damage . | . . . . . Shots . | . . . . . Rammed . | . . . . . Targets Rammed 2 | . . . 2 . Kicked 2 | . . . 2 . Crushed . | . . . . . Highest Temperature 543 | 132 321 303 543 116 Average Temperature 119 | 52 120 137 136 37 Received Heat Transfer 777 | . 159 9 435 174 Effects 5 | . . . 5 . Shutdowns 1 | . . . 1 . Matter Decay 1 | . . . 1 . Short Circuit 2 | . . . 2 . Damage (minor) 1 | . . . 1 . Siege Activations . | . . . . . Robots Corrupted . | . . . . . Combat Hostiles . | . . . . . Parts Fried . | . . . . . Impact Corruptions . | . . . . . Robots Melted 3 | . 1 . 2 . Combat Hostiles 3 | . 1 . 2 . Parts Melted 17 | 1 6 1 7 2 Heat Transferred 4811 | 248 1186 111 2701 565 Parts Sabotaged . | . . . . . Parts Stolen . | . . . . . Parts Stripped . | . . . . . Power Chain Reactions . | . . . . . Alert | -11 -10 -10 -9 -9 ------- Run | Yrd Mat Min Mat Sto Peak Influence 365 | 20 153 71 365 305 Initial 76 | . 13 . . 76 Average 77 | 6 80 19 149 141 Maximum Alert Level 1 | . . . 1 1 Low Security (%) 90 | 100 100 100 69 76 Level 1 9 | . . . 30 23 Level 2 . | . . . . . Level 3 . | . . . . . Level 4 . | . . . . . Level 5 . | . . . . . High Security . | . . . . . Max Security . | . . . . . Squads Dispatched 5 | . 1 . 1 3 Investigation . | . . . . . Extermination . | . . . . . Reinforcement 3 | . 1 . 1 1 Assault 2 | . . . . 2 Garrison . | . . . . . Intercept . | . . . . . Searches Triggered . | . . . . . Construction Impeded . | . . . . . Haulers Reinforced . | . . . . . Active Scanning Responses . | . . . . . Cargo Convoy Interrupts . | . . . . . Stealth | -11 -10 -10 -9 -9 --------- Run | Yrd Mat Min Mat Sto Distress Signals 7 | . 1 . 4 2 Communications Jammed . | . . . . . Distress Signals . | . . . . . Times Spotted 60 | . 13 5 25 17 Peak Tracking Total 10 | . 5 3 7 10 Tactical Retreats 3 | . . . 3 . Traps | -11 -10 -10 -9 -9 ------- Run | Yrd Mat Min Mat Sto Traps Triggered . | . . . . . Indirectly . | . . . . . Trap Hack Attempts . | . . . . . Triggered . | . . . . . Disarmed 4 | . . . . 4 Reprogrammed . | . . . . . Reused . | . . . . . Traps Extracted . | . . . . . Installed . | . . . . . Triggered . | . . . . . Machines | -11 -10 -10 -9 -9 ---------- Run | Yrd Mat Min Mat Sto Machines Disabled 1 | . . . 1 . Max in Single Turn 1 | . . . 1 . Machines Repaired . | . . . . . Machines Dismantled . | . . . . . Machines Sabotaged . | . . . . . Overloaded Fab Kills . | . . . . . Hacking | -11 -10 -10 -9 -9 --------- Run | Yrd Mat Min Mat Sto Machines Accessed 6 | . 2 . 1 3 Terminals 6 | . 2 . 1 3 Fabricators . | . . . . . Repair Stations . | . . . . . Recycling Units . | . . . . . Scanalyzers . | . . . . . Garrison Access . | . . . . . Total Hacks 14 | . 5 . 1 8 Successful 6 | . 1 . 1 4 Failed 8 | . 4 . . 4 Catastrophic 1 | . 1 . . . Database Lockouts . | . . . . . Manual . | . . . . . Terminals 14 | . 5 . 1 8 Fabricators . | . . . . . Repair Stations . | . . . . . Recycling Units . | . . . . . Scanalyzers . | . . . . . Garrison Access . | . . . . . Terminal Hacks 6 | . 1 . 1 4 Open Door 1 | . . . . 1 Level Access Points 1 | . . . . 1 Branch Access Points 2 | . 1 . . 1 Emergency Access Points 1 | . . . 1 . Disarm Traps 1 | . . . . 1 Fabricator Hacks . | . . . . . Repair Station Hacks . | . . . . . Recycling Unit Hacks . | . . . . . Scanalyzer . | . . . . . Garrison Access Hacks . | . . . . . Unauthorized Hacks . | . . . . . Terminals . | . . . . . Fabricators . | . . . . . Repair Stations . | . . . . . Recycling Units . | . . . . . Scanalyzers . | . . . . . Garrison Access . | . . . . . Data Cores Recovered 1 | . 1 . . . Used . | . . . . . Hacking Detections 1 | . 1 . . . Full Trace Events . | . . . . . Feedback Events . | . . . . . Feedback Blocked . | . . . . . Robot Schematics Acquired . | . . . . . Robots Built . | . . . . . Authchips . | . . . . . Time . | . . . . . Total Robot Build Rating . | . . . . . Part Schematics Acquired . | . . . . . Parts Built . | . . . . . Authchips . | . . . . . Time . | . . . . . Total Part Build Rating . | . . . . . Parts Repaired . | . . . . . Time . | . . . . . Parts Recycled . | . . . . . Recycled Matter . | . . . . . Retrieved Matter . | . . . . . Retrieved Components . | . . . . . Parts Scanalyzed . | . . . . . Part Schematics Acquired . | . . . . . Parts Damaged . | . . . . . Bothacking | -11 -10 -10 -9 -9 ------------ Run | Yrd Mat Min Mat Sto Used RIF Installer . | . . . . . Robots Hacked . | . . . . . Non-combat . | . . . . . Combat . | . . . . . Robot Hacks Applied . | . . . . . Relay Couplers Released . | . . . . . Fabnet Peak Effective % . | . . . . . Robots Rewired . | . . . . . Allies Hacked . | . . . . . Hacks Repelled . | . . . . . Allies | -11 -10 -10 -9 -9 -------- Run | Yrd Mat Min Mat Sto Total Allies 4 | . . 2 . 2 Largest Group 2 | . . 2 1 2 Highest-Rated Group 62 | . . 42 11 62 Highest-Rated Ally 31 | . . 31 11 31 Total Orders . | . . . . . Ally Attacks 33 | . . 5 . 28 Total Damage 523 | . . 63 . 460 Kills 6 | . . 1 . 5 Allies Corrupted . | . . . . . Allies Melted . | . . . . . Intel | -11 -10 -10 -9 -9 ------- Run | Yrd Mat Min Mat Sto Robot Analysis Total . | . . . . . Derelict Logs Recovered . | . . . . . Drone Launches . | . . . . . Drone Recoveries . | . . . . . Exploration | -11 -10 -10 -9 -9 ------------- Run | Yrd Mat Min Mat Sto Turns Passed 1733 | 120 408 606 417 182 Spaces Moved 1045 | 64 230 446 188 117 Core 5 | 5 . . . . Treads . | . . . . . Legs 1040 | 59 230 446 188 117 Wheels . | . . . . . Hover . | . . . . . Flight . | . . . . . Fastest Speed 50 | 50 120 120 120 120 Average Speed 120 | 116 120 120 122 120 Slowest Speed 190 | 120 120 120 190 120 Overloaded Moves . | . . . . . Propulsion Burnouts . | . . . . . Robots Hopped . | . . . . . Cave-ins Triggered . | . . . . . Exploration Rate (%) 32 | 5 37 81 16 21 Regions Visited 4 Branch Regions 2 Pre-discovered Areas . | . . . . . Known Exits Taken 1 | . 1 . . . Unknown Exits Taken 3 | 1 . 1 1 . Scrap Searched 1 | . . 1 . . Spaces Dug . | . . . . . Terrain Destroyed . | . . . . . Melee . | . . . . . Projectile . | . . . . . AOE . | . . . . . Terrain Rammed . | . . . . . Walls Destroyed . | . . . . . Machines Disabled . | . . . . . Actions | -11 -10 -10 -9 -9 --------- Run | Yrd Mat Min Mat Sto Total 1334 | 92 310 508 280 144 Wait 113 | 11 39 51 7 5 Move 1041 | 63 229 445 187 117 Hop . | . . . . . Pick Up 17 | 4 7 . 1 5 Fast Attach 10 | 6 . . 4 . Attach 8 | 1 . . 5 2 Detach . | . . . . . Swap 13 | . 2 4 6 1 Drop 15 | . 4 3 4 4 Fire 115 | 7 29 5 64 10 Melee . | . . . . . Ram . | . . . . . Kick 2 | . . . 2 . Crush . | . . . . . Escape Stasis . | . . . . . Rewire . | . . . . . Trap . | . . . . . Miscellaneous . | . . . . . Route ------- -11/Scrapyard -10/Materials -10/Mines (discovered 2 exits: *Mat x2) -9/Materials -9/Storage (discovered 2 exits: Mat / Rec) History --------- Turn | Location | Event 11 | -11/Scrapyard | Discovered new exit (range 16) 121 | -11/Scrapyard | Entered Materials 311 | -10/Materials | Build established: Mutant 459 | -10/Materials | Identified exit to Mines 529 | -10/Materials | Entered Mines 569 | -10/Mines | Found a damaged Exp. Sensor Array with a note attached 649 | -10/Mines | Joined a pair of Derelicts in attacking an 0b10 outpost 709 | -10/Mines | Discovered new exit (range 10) 772 | -10/Mines | Discovered new exit (range 13) 901 | -10/Mines | Found a hidden stash of uninstalled traps 965 | -10/Mines | Build established: Scavenger-Mutant 1135 | -10/Mines | Entered Materials 1135 | -9/Materials | Accompanied by 1 ally 1135 | -9/Materials | Evolved 2 slots: Utility x2 1359 | -9/Materials | Discovered new exit (range 15) 1409 | -9/Materials | Core integrity fell below 50% 1552 | -9/Materials | Entered Storage 1607 | -9/Storage | Identified exit to Recycling 1607 | -9/Storage | Identified exit to Materials 1643 | -9/Storage | Met a pair of Derelict thieves 1729 | -9/Storage | Core integrity fell below 20% 1734 | -9/Storage | Destroyed by L-31 Rogue with Katana Last Messages --------------- C-30 ARC bursts open, deploying its payload. G-47 Trooper unfolds itself. L-31 Rogue unfolds itself. G-34 Mercenary unfolds itself. L-31 Rogue unfolds itself. R-06 Scavenger collects Lgt. Angular Momentum Engine. Med. Laser destroyed. System corrupted by crushing effect (+4). Compression Vault explodes. Heat Sink destroyed. R-06 Scavenger destroyed. B-36 Bruiser suffers critical hit (Burn). Aluminum Leg destroyed. Critical hit (Burn: +37). Med. Laser destroyed. Critical hit (Burn: +37). Hvy. Ion Engine destroyed. System corrupted by crushing effect (+2). M-13 Machinist repairs Lgt. Armor Plating. Map ----- +----------------------------------------------------+ | ????????????????# **#???????????# #???????? | | ????????????????# #???????????# #???????? | | ????????????????##" "###???????????# #???????? | | ????????????????# T#????????????# #???????? | | ????????????????# ##????????????# +???????? | | ?? ##############+############### #???????? | | ?? #???????? | | ?? +???????? | | ?? =% #???????? | | ?? ####+#########+####### #???????? | | ??????????????????# # [ [#???????? | | ??????????????????# #** [ ####????? | | ??????????????????# """" #* [ ##T####?? | | ??????????????????# "??" # ! ## * #?? | | ??????????????????# "??" # ## ***#?? | | ??????????????????# "??" + + **#?? | | ??????????????????# "??" # ######?? | | ??????????????????# """" # ### #######??????? | | ??????????????????# # ###+######???????? | | ??????????????????########## # #???????? | | ????????????????????##"T"#%# # "T" == #???????? | | ????????????????????# ==# # == #???????? | | ????????????????????# # """?????? | | ????????????????????+ # R"#????? | | ????????????????????# **# """"" """#????? | | ????????????????????# @b *%# """"" ####????? | | ????????????????????# lb %Y;l """"" #???????? | | ????????????????????# g*mg# #??????? | | ????????????????????# g #####+#####??????? | | ????????????????????### i#%%#????????????????? | | ?????????????????????? g ???????????????? | | ?????????????????????####### % ??????????????? | | ???????????????????????????###### ?????????????? | | ?????????????????????????????????? ???????????? | | ??????????????????????????????????? #??????????? | | ????????????????????????????????????+??????????? | | ???????????????????????????????????????????????? | | ???????????????????????????????????????????????? | | ???????????????????????????????????????????????? | | ???????????????????????????????????????????????? | | ???????????????????????????????????????????????? | | ???????????????????????????????????????????????? | | ???????????????????????????????????????????????? | | ???????????????????????????????????????????????? | | ???????????????????????????????????????????????? | | ???????????????????????????????????????????????? | | ???????????????????????????????????????????????? | | ???????????????????????????????????????????????? | | ???????????????????????????????????????????????? | | ???????????????????????????????????????????????? | +----------------------------------------------------+ Best States ------------- Heat Dissipation 38 Energy Generation 14 Energy Capacity 280 Matter Stores 300 Matter Capacity 300 Sight Range 18 Terrain Scan Density 10 Armor Coverage 150 Evasion (%) 55 Offensive Hacking 10 Item Schematics ----------------- None Robot Schematics ------------------ None Fabricated ------------ Nothing Alien Tech Used ----------------- None Achievements -------------- None Challenges ------------ None Game ------ Seed DirtyMultitargetingLoader Manual? 0 Play Time 00:19:53 Cumulative 7.2 hours Start 2024.04.11 @ 20:48:26 End 2024.04.11 @ 21:06:42 Sessions 1 Manual Loads 0 Difficulty Rogue Special Mode None Game No. 17 Rogue 17 Adventurer 0 Explorer 0 Win Type - Total 0 Types 0/0/0/0/0/0/0/0/0 Lore% 12 Gallery% 12 Achievement% 14 Wizard Run 0 Options --------- Layout 1 ASCII 0 Keyboard 0 Movement Numpad Keybinds 0 Fullscreen 2 Font 32/SmallcapsGlow Map View 50x35 Zoom Use 0% Tactical HUD 0 Map Filters NONE Filters NONE Steam 0 RUN: 6495a5d2-b48f-43c0-8dbd-e76369ad3845